fUST/lending_fUST_20251207
["ID","MTS","AMOUNT","RATE_DAILY","PERIOD"]
[396651009,1765086536920,1597.22218746,5.914e-05,2]
[396651010,1765086536969,1597.22218746,5.914e-05,2]
[396651011,1765086543899,250.0,5.629e-05,3]
[396651012,1765086554473,-50.4884499,5.916e-05,2]
[396651013,1765086554494,-206.86885331,5.917e-05,2]
[396651014,1765086554515,-68.85425497,5.918e-05,2]
[396651015,1765086557315,-179.15044541,5.918e-05,2]
[396651016,1765086558876,500.0,5.914e-05,2]
[396651017,1765086558915,435.49425378,5.914e-05,2]
[396651018,1765086558956,500.0,5.914e-05,2]
[396651019,1765086559004,500.0,5.914e-05,2]
[396651020,1765086559056,500.0,5.914e-05,2]
[396651021,1765086559100,500.0,5.914e-05,2]
[396651022,1765086559138,500.0,5.914e-05,2]
[396651023,1765086559190,607.80730867,5.914e-05,2]
[396651024,1765086559217,-51.99529962,5.918e-05,2]
[396651025,1765086559238,-192.97650903,5.919e-05,2]
[396651026,1765086559274,500.0,5.914e-05,2]
[396651027,1765086559327,500.0,5.914e-05,2]
[396651028,1765086559376,500.0,5.914e-05,2]
[396651029,1765086559436,500.0,5.914e-05,2]
[396651030,1765086559494,500.0,5.914e-05,2]
[396651031,1765086559552,500.0,5.914e-05,2]
[396651032,1765086559593,500.0,5.914e-05,2]
[396651033,1765086559651,500.0,5.914e-05,2]
[396651034,1765086561592,-215.10551669,5.919e-05,2]
[396651035,1765086563187,-211.78772605,5.919e-05,2]
[396651037,1765086564777,-172.32017929,5.919e-05,2]
[396651038,1765086566369,-130.97945788,5.919e-05,2]
[396651039,1765086566389,-500.57888725,5.919e-05,2]
[396651041,1765086567104,-329.42693693,5.919e-05,2]
[396651042,1765086569135,-1400.30948182,5.919e-05,2]
[396651043,1765086569421,-185.74975375,5.919e-05,2]
[396651044,1765086571012,1030.20831091,5.914e-05,2]
[396651045,1765086571164,1030.20831091,5.914e-05,2]
[396651046,1765086571297,1030.20831091,5.914e-05,2]
[396651047,1765086571369,1030.20831091,5.914e-05,2]
[396651049,1765086572596,-324.04632137,5.919e-05,2]
[396651051,1765086576570,500.0,5.914e-05,2]
[396651052,1765086576671,500.0,5.914e-05,2]
[396651053,1765086576781,500.0,5.914e-05,2]
[396651054,1765086576865,500.0,5.914e-05,2]
[396651055,1765086576911,500.0,5.914e-05,2]
[396651056,1765086576951,500.0,5.914e-05,2]
[396651057,1765086577446,78.55779272,5.914e-05,2]
[396651058,1765086577475,241.44220728,5.914e-05,2]
[396651059,1765086577558,500.0,5.914e-05,2]
[396651060,1765086577601,500.0,5.914e-05,2]
[396651061,1765086585666,-468.18209299,5.919e-05,2]
[396651062,1765086600487,-221.6882104,5.919e-05,2]
[396651063,1765086602238,300.0,5.918e-05,2]
[396651064,1765086602601,-180.14800879,5.919e-05,2]
[396651065,1765086606527,-500.0,5.919e-05,2]
[396651066,1765086608303,1200.0,5.918e-05,2]
[396651067,1765086608355,-210.60091953,5.919e-05,2]
[396651068,1765086612786,-327.85199121,5.919e-05,2]
[396651069,1765086612855,439.97469921,5.915e-05,2]
[396651070,1765086615606,-155.67299573,5.919e-05,2]
[396651071,1765086629709,-240.43560067,5.919e-05,2]
[396651072,1765086631090,-275.27572614,5.919e-05,2]
[396651104,1765086632205,-91710.9844209,5.919e-05,2]
[396651105,1765086632216,-334.45923056,5.919e-05,2]
[396651106,1765086632239,-820.5238733,5.919e-05,2]
[396651107,1765086632251,-139504.30049309,5.919e-05,2]
[396651108,1765086633728,-579.58930058,5.919e-05,2]
[396651109,1765086635453,-300.0,5.919e-05,2]
[396651170,1765086638758,-7946.49465681,5.919e-05,2]
[396651175,1765086638803,-4295.00459402,5.919e-05,2]
[396651177,1765086638818,-2063.73805655,5.919e-05,2]
[396651180,1765086638841,-1117.63657693,5.919e-05,2]
[396651182,1765086638854,-1636.59532426,5.919e-05,2]
[396651184,1765086638867,-463.0,5.919e-05,2]
[396651210,1765086639137,-16680.8051697,5.919e-05,2]
[396651520,1765086642348,-3e-08,5.919e-05,2]
[396651525,1765086642386,-2502.35060588,5.919e-05,2]
[396651527,1765086642396,-4606.55837794,5.919e-05,2]
[396652057,1765086647324,-1075.6164,5.919e-05,2]
[396652064,1765086647375,-1075.6164,5.919e-05,2]
[396652180,1765086648487,4722.4482544,5.543e-05,2]
[396652793,1765086655887,500.0,5.918e-05,2]
[396653458,1765086662332,300.0,5.918e-05,2]
[396653520,1765086662890,300.0,5.918e-05,2]
[396654238,1765086674393,-731.3444991,5.919e-05,2]
[396654239,1765086678173,-256.87988646,5.919e-05,2]
[396654240,1765086679718,-274.75222852,5.919e-05,2]
[396654241,1765086682307,-283.73409991,5.919e-05,2]
[396654242,1765086683363,-170.93,5.919e-05,2]
[396654243,1765086685576,-453.22945386,5.919e-05,2]
[396654244,1765086687069,-246.82715909,5.919e-05,2]
[396654245,1765086689331,500.0,5.918e-05,2]
[396654246,1765086689391,496.14483911,5.918e-05,2]
[396654247,1765086689426,3.85516089,5.918e-05,2]
[396654248,1765086689476,500.0,5.918e-05,2]
[396654249,1765086689521,500.0,5.918e-05,2]
[396654250,1765086689565,500.0,5.918e-05,2]
[396654251,1765086689616,414.75813256,5.918e-05,2]
[396654252,1765086689665,500.0,5.918e-05,2]
[396654253,1765086689735,500.0,5.918e-05,2]
[396654254,1765086691757,-154.99,5.919e-05,2]
[396654255,1765086693236,-423.1959537,5.919e-05,2]
[396654256,1765086695340,-182.04172186,5.919e-05,2]
[396654257,1765086696935,-188.12795238,5.919e-05,2]
[396654258,1765086704583,1673.9040641,5.918e-05,2]
[396654259,1765086704956,1673.9040641,5.918e-05,2]
[396654260,1765086705024,1673.9040641,5.918e-05,2]
[396654261,1765086705074,1673.9040641,5.918e-05,2]
[396654262,1765086705124,385.78045015,5.918e-05,2]
[396654263,1765086705164,1288.12361395,5.918e-05,2]
[396654264,1765086705223,1673.9040641,5.918e-05,2]
[396654265,1765086705380,1673.9040641,5.918e-05,2]
[396654266,1765086705519,1673.9040641,5.918e-05,2]
[396654267,1765086705576,1673.9040641,5.918e-05,2]
[396654268,1765086705633,1673.9040641,5.918e-05,2]
[396654269,1765086705703,342.36606555,5.918e-05,2]
[396654270,1765086705741,1331.53799855,5.918e-05,2]
[396654271,1765086705800,1673.9040641,5.918e-05,2]
[396654272,1765086705859,1673.9040641,5.918e-05,2]
[396654273,1765086705919,1673.9040641,5.918e-05,2]
[396654274,1765086705979,1673.9040641,5.918e-05,2]
[396654275,1765086706517,1673.9040641,5.918e-05,2]
[396654276,1765086709497,298.95168095,5.918e-05,2]
[396654277,1765086709533,201.04831905,5.918e-05,2]
[396654278,1765086709574,500.0,5.918e-05,2]
[396654279,1765086709623,500.0,5.918e-05,2]
[396654280,1765086709682,313.86218021,5.918e-05,2]
[396654281,1765086715569,1270.19778982,5.918e-05,2]
[396654282,1765086715621,1270.19778982,5.918e-05,2]
[396654283,1765086715674,1270.19778982,5.918e-05,2]
[396654284,1765086715734,1270.19778982,5.918e-05,2]
[396654285,1765086715798,1270.19778982,5.918e-05,2]
[396654286,1765086715890,1270.19778982,5.918e-05,2]
[396654287,1765086716026,863.91276182,5.918e-05,2]
[396654288,1765086716063,406.285028,5.918e-05,2]
[396654289,1765086716270,1270.19778982,5.918e-05,2]
[396654290,1765086716317,1270.19778982,5.918e-05,2]
[396654291,1765086716385,1270.19778982,5.918e-05,2]
[396654292,1765086716554,1270.19778982,5.918e-05,2]
[396654293,1765086716656,1270.19778982,5.918e-05,2]
[396654294,1765086722313,300.0,5.918e-05,2]
[396654295,1765086735088,1451.88872106,5.918e-05,2]
[396654296,1765086735139,1451.88872106,5.918e-05,2]
[396654297,1765086735205,38.95858078,5.918e-05,2]
[396654298,1765086735241,1412.93014028,5.918e-05,2]
[396654299,1765086735299,500.0,5.918e-05,2]
[396654300,1765086735382,1451.88872106,5.918e-05,2]
[396654301,1765086735531,1451.88872106,5.918e-05,2]
[396654302,1765086735617,1451.88872106,5.918e-05,2]
[396654303,1765086735663,500.0,5.918e-05,2]
[396654304,1765086735729,1451.88872106,5.918e-05,2]
[396654305,1765086735818,1451.88872106,5.918e-05,2]
[396654306,1765086736019,327.63625442,5.918e-05,2]
[396654307,1765086736057,1124.25246664,5.918e-05,2]
[396654308,1765086738160,500.0,5.918e-05,2]
[396654309,1765086738462,500.0,5.918e-05,2]
[396654310,1765086739585,250.0,5.918e-05,2]
[396654311,1765086739695,500.0,5.918e-05,2]
[396654312,1765086740010,500.0,5.918e-05,2]
[396654313,1765086740089,500.0,5.918e-05,2]
[396654314,1765086740167,605.1739495,5.918e-05,2]
[396654315,1765086741627,500.0,5.918e-05,2]
[396654316,1765086741753,500.0,5.918e-05,2]
[396654317,1765086741891,500.0,5.918e-05,2]
[396654318,1765086741968,330.47040155,5.918e-05,2]
[396654319,1765086745247,1804.58030996,5.918e-05,2]
[396654320,1765086745380,1804.58030996,5.918e-05,2]
[396654321,1765086745450,80.95256239,5.918e-05,2]
[396654322,1765086745486,1723.62774757,5.918e-05,2]
[396654323,1765086751641,260.0406801,5.918e-05,2]
[396654324,1765086754146,405.57051989,5.918e-05,2]
[396654325,1765086778328,1200.0,5.918e-05,2]
[396654326,1765086779753,330.12583943,0.000211,99]
[396654327,1765086780453,330.12583943,0.000211,99]
[396654328,1765086782464,300.0,5.918e-05,2]
[396654329,1765086792705,500.0,5.918e-05,2]
[396654330,1765086792766,500.0,5.918e-05,2]
[396654331,1765086799938,605.05324406,5.918e-05,2]
[396654332,1765086810572,500.0,5.918e-05,2]
[396654333,1765086842746,300.0,5.918e-05,2]
[396654334,1765086842978,300.0,5.918e-05,2]
[396654335,1765086847348,191.08208251,5.918e-05,2]
[396654336,1765086847423,500.0,5.918e-05,2]
[396654337,1765086901420,300.0,5.918e-05,2]
[396654338,1765086903132,300.0,5.918e-05,2]
[396654339,1765086906978,300.0,5.918e-05,2]
[396654340,1765086909918,1200.0,5.918e-05,2]
[396654341,1765086930742,614.63572587,5.819e-05,2]
[396654342,1765086930786,10000.01,5.819e-05,2]
[396654343,1765086930830,10000.01,5.819e-05,2]
[396654344,1765086930875,10000.01,5.819e-05,2]
[396654345,1765087167108,150.0,0.00013643,30]
[396654346,1765087167504,243.6,0.00014293,30]
[396654347,1765087167900,365.4,0.00014942,30]
[396654348,1765087248367,150.0,0.00014661,30]
[396654349,1765087328200,150.0,0.00013788,30]
[396654350,1765087328596,233.68,0.00014445,30]
[396654351,1765087329044,350.52,0.00015101,30]
[396654352,1765087479530,150.0,0.0001427,30]
[396654353,1765087479924,225.67,0.00014949,30]
[396654354,1765087527682,-300.0,5.813e-05,2]
[396654355,1765087527726,-300.0,5.813e-05,2]
[396654356,1765087527775,-300.0,5.813e-05,2]
[396654357,1765087527818,-300.0,5.813e-05,2]
[396654358,1765087527865,-1200.0,5.813e-05,2]
[396654359,1765087558836,150.0,0.00013819,30]
[396654360,1765087559111,221.57,0.00014477,30]
[396654361,1765087559518,332.36,0.00015135,30]
[396654362,1765087562723,300.0,5.813e-05,2]
[396654363,1765087592489,713.78135152,5.813e-05,2]
[396654364,1765087592579,713.78135152,5.813e-05,2]
[396654365,1765087592789,713.78135152,5.813e-05,2]
[396654366,1765087593457,713.78135152,5.813e-05,2]
[396654367,1765087593883,713.78135152,5.813e-05,2]
[396654368,1765087593975,713.78135152,5.813e-05,2]
[396654369,1765087594128,713.78135152,5.813e-05,2]
[396654370,1765087594185,713.78135152,5.813e-05,2]
[396654371,1765087594251,713.78135152,5.813e-05,2]
[396654372,1765087594330,713.78135152,5.813e-05,2]
[396654373,1765087594523,713.78135152,5.813e-05,2]
[396654374,1765087594623,713.78135152,5.813e-05,2]
[396654375,1765087594738,713.78135152,5.813e-05,2]
[396654376,1765087594960,420.85243024,5.813e-05,2]
[396654377,1765087595001,292.92892128,5.813e-05,2]
[396654378,1765087595467,713.78135152,5.813e-05,2]
[396654379,1765087595655,713.78135152,5.813e-05,2]
[396654380,1765087600368,203.38560017,5.813e-05,2]
[396654381,1765087600509,500.0,5.813e-05,2]
[396654382,1765087600557,184.97312584,5.813e-05,2]
[396654383,1765087602724,435.44845886,5.813e-05,2]
[396654384,1765087608952,2606.43017964,5.813e-05,2]
[396654385,1765087609016,2606.43017964,5.813e-05,2]
[396654386,1765087609074,1742.85083153,5.813e-05,2]
[396654387,1765087609122,863.57934811,5.813e-05,2]
[396654388,1765087609209,2606.43017964,5.813e-05,2]
[396654389,1765087609284,2606.43017964,5.813e-05,2]
[396654390,1765087609450,2606.43017964,5.813e-05,2]
[396654391,1765087609582,2606.43017964,5.813e-05,2]
[396654392,1765087609782,2606.43017964,5.813e-05,2]
[396654393,1765087609841,2180.71946108,5.813e-05,2]
[396654394,1765087609881,425.71071856,5.813e-05,2]
[396654395,1765087609936,2606.43017964,5.813e-05,2]
[396654396,1765087610023,2606.43017964,5.813e-05,2]
[396654397,1765087610380,2606.43017964,5.813e-05,2]
[396654398,1765087626749,1501.11071457,5.813e-05,2]
[396654399,1765087627121,1501.11071457,5.813e-05,2]
[396654400,1765087627194,1501.11071457,5.813e-05,2]
[396654401,1765087627391,1501.11071457,5.813e-05,2]
[396654402,1765087627451,1501.11071457,5.813e-05,2]
[396654403,1765087627514,1501.11071457,5.813e-05,2]
[396654404,1765087627673,993.34571258,5.813e-05,2]
[396654405,1765087627714,507.76500199,5.813e-05,2]
[396654406,1765087632352,250.0,5.753e-05,2]
[396654407,1765087644551,750.55535727,5.813e-05,2]
[396654408,1765087644811,750.55535727,5.813e-05,2]
[396654409,1765087644864,750.55535727,5.813e-05,2]
[396654410,1765087744396,250.0,5.628e-05,3]
[396654411,1765087772627,1468.6832138,4.843e-05,2]
[396654412,1765087777597,150.0,9.816e-05,30]
[396654413,1765087778005,213.9,0.00010283,30]
[396654414,1765087778400,320.84,0.00010751,30]
[396654415,1765087778830,427.79,0.00011218,30]
[396654416,1765087779239,534.74,0.00011685,30]
[396654417,1765087779626,641.69,0.00012153,30]
[396654418,1765087780043,748.63,0.0001262,30]
[396654419,1765087780443,855.58,0.00013088,30]
[396654420,1765087780852,962.53,0.00013555,30]
[396654421,1765087781284,1026.44940877,0.00014023,30]
[396654422,1765087812232,1200.0,5.813e-05,2]
[396654475,1765087832882,-555.35064751,5.814e-05,2]
[396654476,1765087832891,-1200.0,5.814e-05,2]
[396654477,1765087832900,-180.0,5.814e-05,2]
[396654478,1765087832909,-300.0,5.814e-05,2]
[396654479,1765087832918,-202.0,5.814e-05,2]
[396654480,1765087832927,-153.40584631,5.815e-05,2]
[396654481,1765087832936,-1792.5184726,5.815e-05,2]
[396654482,1765087832945,-310.26643614,5.815e-05,2]
[396654483,1765087832954,-152.63882303,5.815e-05,2]
[396654484,1765087832963,-997.74779035,5.815e-05,2]
[396654486,1765087832973,-500.0,5.816e-05,2]
[396654488,1765087832983,-261.73621505,5.816e-05,2]
[396654490,1765087832992,-500.0,5.817e-05,2]
[396654492,1765087833001,-500.0,5.817e-05,2]
[396654494,1765087833011,-500.0,5.817e-05,2]
[396654496,1765087833020,-500.0,5.817e-05,2]
[396654498,1765087833029,-500.0,5.817e-05,2]
[396654500,1765087833039,-500.0,5.817e-05,2]
[396654502,1765087833048,-500.0,5.817e-05,2]
[396654504,1765087833058,-103888.50928334,5.819e-05,2]
[396654509,1765087833094,-44661.66161688,5.819e-05,2]
[396654511,1765087833106,-79230.05070626,5.819e-05,2]
[396654518,1765087833157,-500.0,5.817e-05,2]
[396654520,1765087833166,-716.03821979,5.819e-05,2]
[396654600,1765087838308,-343.48819371,5.817e-05,2]
[396654602,1765087838319,-156.51180629,5.817e-05,2]
[396654604,1765087838328,-500.0,5.817e-05,2]
[396654606,1765087838338,-485.62555879,5.819e-05,2]
[396654608,1765087838349,-1567.3008456,5.819e-05,2]
[396654610,1765087838360,-617.98410226,5.819e-05,2]
[396654612,1765087838372,-1373.14626632,5.819e-05,2]
[396654614,1765087838382,-3335.44602688,5.819e-05,2]
[396654619,1765087838419,-80087.49839664,5.819e-05,2]
[396654621,1765087838430,-17246.27715036,5.819e-05,2]
[396654623,1765087838443,-50327.20767049,5.819e-05,2]
[396654625,1765087838454,-23241.93743262,5.819e-05,2]
[396654627,1765087838465,-32987.89925653,5.819e-05,2]
[396654630,1765087838475,-19227.72316444,5.819e-05,2]
[396654632,1765087838486,-16861.96021824,5.819e-05,2]
[396654827,1765087840665,-0.01254402,5.819e-05,2]
[396654829,1765087840676,-601.7533848,5.819e-05,2]
[396655118,1765087843507,-17194.30524317,5.819e-05,2]
[396655119,1765087843536,-74.39271157,5.819e-05,2]
[396655378,1765087846282,-40063.90011786,5.819e-05,2]
[396655886,1765087863188,300.0,5.818e-05,2]
[396655887,1765087887868,1613.23060517,5.817e-05,2]
[396655888,1765087887940,1613.23060517,5.817e-05,2]
[396655889,1765087888018,1613.23060517,5.817e-05,2]
[396655890,1765087888101,1613.23060517,5.817e-05,2]
[396655891,1765087888163,1613.23060517,5.817e-05,2]
[396655892,1765087888250,1613.23060517,5.817e-05,2]
[396655893,1765087888411,20.62636898,5.817e-05,2]
[396655894,1765087888454,1592.60423619,5.817e-05,2]
[396655895,1765087888520,1613.23060517,5.817e-05,2]
[396655896,1765087888660,1613.23060517,5.817e-05,2]
[396655897,1765087889162,1613.23060517,5.817e-05,2]
[396655898,1765087922749,300.0,5.818e-05,2]
[396655899,1765087935546,1613.23060517,5.817e-05,2]
[396655900,1765087935592,508.35601448,5.817e-05,2]
[396655901,1765087935672,1146.12732865,5.817e-05,2]
[396655902,1765087935713,467.10327652,5.817e-05,2]
[396655903,1765087935801,1613.23060517,5.817e-05,2]
[396655904,1765087935869,1613.23060517,5.817e-05,2]
[396655905,1765087935949,1613.23060517,5.817e-05,2]
[396655906,1765087936031,1613.23060517,5.817e-05,2]
[396655907,1765087936109,1613.23060517,5.817e-05,2]
[396655908,1765087936207,1466.75369763,5.817e-05,2]
[396655909,1765087936247,146.47690754,5.817e-05,2]
[396655910,1765087936430,1613.23060517,5.817e-05,2]
[396655911,1765087936574,1613.23060517,5.817e-05,2]
[396655912,1765087948630,500.0,5.817e-05,2]
[396655913,1765087949154,500.0,5.817e-05,2]
[396655914,1765087949308,5627.07188212,5.719e-05,2]
[396655915,1765087949350,10000.01,5.719e-05,2]
[396655916,1765087949390,10000.01,5.719e-05,2]
[396655917,1765087949429,10000.01,5.719e-05,2]
[396655918,1765087949736,10000.01,5.719e-05,2]
[396655919,1765087949774,10000.01,5.719e-05,2]
[396655920,1765087949811,10000.01,5.719e-05,2]
[396655921,1765087949851,10000.01,5.719e-05,2]
[396655922,1765087949890,10000.01,5.719e-05,2]
[396655924,1765087980365,1200.0,5.718e-05,2]
[396655925,1765087982459,300.0,5.718e-05,2]
[396655926,1765087995629,-486.29179687,5.719e-05,2]
[396655927,1765087997255,-601.87990229,5.719e-05,2]
[396655930,1765087998827,-187.93737386,5.719e-05,2]
[396655931,1765088000881,-377.64704023,5.719e-05,2]
[396655932,1765088002461,-234.93666018,5.719e-05,2]
[396655933,1765088003950,-287.86783038,5.719e-05,2]
[396655934,1765088005603,-220.46077197,5.719e-05,2]
[396655935,1765088007950,-305.55076006,5.719e-05,2]
[396655936,1765088012334,-188.49682959,5.719e-05,2]
[396655937,1765088013905,-185.07562662,5.719e-05,2]
[396655938,1765088016858,-597.58220101,5.719e-05,2]
[396655939,1765088019735,-249.4444737,5.719e-05,2]
[396655940,1765088023631,-378.49379308,5.719e-05,2]
[396655941,1765088025246,-151.0,5.719e-05,2]
[396655942,1765088027890,-535.42832318,5.719e-05,2]
[396655943,1765088032747,-384.40162183,5.719e-05,2]
[396655944,1765088034702,-156.0,5.719e-05,2]
[396655945,1765088039084,-265.06333982,5.719e-05,2]
[396655946,1765088040590,-260.83183474,5.719e-05,2]
[396655948,1765088042384,300.0,5.718e-05,2]
[396655949,1765088043516,-223.5257658,5.719e-05,2]
[396655950,1765088045509,-247.16595522,5.719e-05,2]
[396655955,1765088073975,500.0,5.718e-05,2]
[396655956,1765088074046,500.0,5.718e-05,2]
[396655957,1765088074137,500.0,5.718e-05,2]
[396655958,1765088074622,448.56194793,5.718e-05,2]
[396655959,1765088074796,500.0,5.718e-05,2]
[396655961,1765088085688,-272.06837216,5.719e-05,2]
[396655963,1765088087699,-157.24285756,5.719e-05,2]
[396655964,1765088089828,-300.35265755,5.719e-05,2]
[396655965,1765088092607,-334.11197771,5.719e-05,2]
[396655966,1765088094760,-152.72,5.719e-05,2]
[396655968,1765088096319,-192.83436738,5.719e-05,2]
[396655970,1765088097837,-261.05428655,5.719e-05,2]
[396655971,1765088100482,-268.9579893,5.719e-05,2]
[396655976,1765088101728,300.0,5.718e-05,2]
[396655978,1765088102090,120.0,5.718e-05,2]
[396655979,1765088102128,180.0,5.718e-05,2]
[396655980,1765088103079,-476.56959832,5.719e-05,2]
[396655981,1765088103481,1155.13032909,5.718e-05,2]
[396655982,1765088103536,1155.13032909,5.718e-05,2]
[396655983,1765088103594,1155.13032909,5.718e-05,2]
[396655984,1765088103672,1155.13032909,5.718e-05,2]
[396655985,1765088103720,950.92673571,5.718e-05,2]
[396655986,1765088103764,204.20359338,5.718e-05,2]
[396655987,1765088103939,1155.13032909,5.718e-05,2]
[396655988,1765088104394,1155.13032909,5.718e-05,2]
[396655989,1765088104530,1155.13032909,5.718e-05,2]
[396655990,1765088104708,-286.62579853,5.719e-05,2]
[396655991,1765088107348,-189.03337398,5.719e-05,2]
[396655992,1765088109213,1200.0,5.718e-05,2]
[396655993,1765088110047,-297.89246289,5.719e-05,2]
[396655997,1765088115027,-483.41840718,5.719e-05,2]
[396655999,1765088117339,-312.26497147,5.719e-05,2]
[396656000,1765088117619,924.10426327,5.718e-05,2]
[396656001,1765088117699,924.10426327,5.718e-05,2]
[396656002,1765088117775,924.10426327,5.718e-05,2]
[396656003,1765088117837,924.10426327,5.718e-05,2]
[396656004,1765088117913,924.10426327,5.718e-05,2]
[396656005,1765088117974,509.894103,5.718e-05,2]
[396656006,1765088118016,414.21016027,5.718e-05,2]
[396656007,1765088118130,924.10426327,5.718e-05,2]
[396656008,1765088118327,924.10426327,5.718e-05,2]
[396656009,1765088118439,924.10426327,5.718e-05,2]
[396656011,1765088118834,924.10426327,5.718e-05,2]
[396656013,1765088118923,924.10426327,5.718e-05,2]
[396656014,1765088120990,-394.04902969,5.719e-05,2]
[396656021,1765088125015,-298.61865185,5.719e-05,2]
[396656025,1765088127138,-385.65207547,5.719e-05,2]
[396656027,1765088128396,-269.65409042,5.719e-05,2]
[396656032,1765088130958,-613.39432335,5.719e-05,2]
[396656037,1765088133650,-158.24064033,5.719e-05,2]
[396656039,1765088135432,536.93644262,5.718e-05,2]
[396656040,1765088135604,536.93644262,5.718e-05,2]
[396656041,1765088135682,536.93644262,5.718e-05,2]
[396656042,1765088136169,-161.57926918,5.719e-05,2]
[396656043,1765088136341,536.93644262,5.718e-05,2]
[396656044,1765088136412,536.93644262,5.718e-05,2]
[396656045,1765088136478,536.93644262,5.718e-05,2]
[396656050,1765088140816,-249.37986527,5.719e-05,2]
[396656054,1765088144058,-220.61788613,5.719e-05,2]
[396656058,1765088147428,-424.663942,5.719e-05,2]
[396656063,1765088150770,-292.39362416,5.719e-05,2]
[396656066,1765088152406,-309.63688295,5.719e-05,2]
[396656067,1765088153968,-152.46583277,5.719e-05,2]
[396656072,1765088157174,-474.05053641,5.719e-05,2]
[396656076,1765088158709,-272.52929848,5.719e-05,2]
[396656079,1765088160774,-233.54778565,5.719e-05,2]
[396656083,1765088162886,-337.27672743,5.719e-05,2]
[396656084,1765088162991,300.0,5.718e-05,2]
[396656087,1765088165238,-382.31628849,5.719e-05,2]
[396656091,1765088167509,-160.26,5.719e-05,2]
[396656097,1765088170284,-196.80918333,5.719e-05,2]
[396656103,1765088174198,-333.96973815,5.719e-05,2]
[396656104,1765088175776,-162.90995115,5.719e-05,2]
[396656105,1765088177833,-214.86638172,5.719e-05,2]
[396656106,1765088179875,-179.64573251,5.719e-05,2]
[396656107,1765088183245,-194.61801414,5.719e-05,2]
[396656108,1765088187039,-151.21737776,5.719e-05,2]
[396656109,1765088191507,-202.34422436,5.719e-05,2]
[396656110,1765088193091,-166.21285512,5.719e-05,2]
[396656111,1765088194552,-279.72248607,5.719e-05,2]
[396656112,1765088196797,-300.0,5.719e-05,2]
[396656113,1765088199054,-155.76528857,5.719e-05,2]
[396656114,1765088200885,-154.09575476,5.719e-05,2]
[396656115,1765088222624,300.0,5.718e-05,2]
[396656116,1765088279767,1143.65986766,5.718e-05,2]
[396656117,1765088280160,56.34013234,5.718e-05,2]
[396656118,1765088282410,300.0,5.718e-05,2]
[396656119,1765088310830,-200000.0,5.719e-05,2]
[396656120,1765088312319,500.0,5.718e-05,2]
[396656121,1765088312371,354.09342296,5.718e-05,2]
[396656122,1765088395184,8789.5764447,4.919e-05,2]
[396656123,1765088395221,10000.01,4.919e-05,2]
[396656124,1765088395254,10000.01,4.919e-05,2]
[396656125,1765088395300,10000.01,4.919e-05,2]
[396656126,1765088395334,10000.01,4.919e-05,2]
[396656127,1765088395368,4785.6450748,4.919e-05,2]
[396656128,1765088401979,300.0,5.718e-05,2]
[396656129,1765088402108,300.0,5.718e-05,2]
[396656130,1765088408468,1200.0,5.718e-05,2]
[396656131,1765088409417,300.0,5.718e-05,2]
[396656132,1765088462494,300.0,5.718e-05,2]
[396656133,1765088502255,505.3698827,4.974e-05,2]
[396656134,1765088522707,300.0,5.718e-05,2]
[396656135,1765088579945,692.0,5.718e-05,2]
[396656136,1765088582502,300.0,5.718e-05,2]
[396656138,1765088642635,300.0,5.718e-05,2]
[396656139,1765088702674,300.0,5.718e-05,2]
[396656140,1765088709369,416.9950425,5.718e-05,2]
[396656141,1765088709411,783.0049575,5.718e-05,2]
[396656142,1765088762449,300.0,5.718e-05,2]
[396656143,1765088822763,300.0,5.718e-05,2]
[396656164,1765088944687,250.0,5.627e-05,3]
[396656165,1765088945725,8367.0050425,5.619e-05,2]
[396656166,1765088945769,10000.01,5.619e-05,2]
[396656167,1765088945813,10000.01,5.619e-05,2]
[396656168,1765088945856,10000.01,5.619e-05,2]
[396656169,1765088945897,10000.01,5.619e-05,2]
[396656170,1765088945938,10000.01,5.619e-05,2]
[396656171,1765088945979,10000.01,5.619e-05,2]
[396656172,1765088946019,10000.01,5.619e-05,2]
[396656173,1765088946062,10000.01,5.619e-05,2]
[396656174,1765088956130,-3595.16810722,5.619e-05,2]
[396656175,1765088999548,-201.71712585,5.619e-05,2]
[396656176,1765089001898,-279.69732835,5.619e-05,2]
[396656177,1765089002083,2000.0,0.0001525,29]
[396656178,1765089002216,300.0,5.618e-05,2]
[396656179,1765089003104,300.0,5.618e-05,2]
[396656180,1765089006224,-159.33000003,5.619e-05,2]